bitfinex/quotes_BTCUSD_20230117
["timestamp","ask_amount","ask_price","bid_price","bid_amount"]
[1673948366592,0.14808173,21171.0,21168.0,0.47293398]
[1673948366843,0.14108173,21171.0,21168.0,0.46593398]
[1673948367092,0.007,21170.0,21168.0,0.47293398]
[1673948367350,0.35187149,21172.0,21168.0,0.46593398]
[1673948367597,0.007,21171.0,21168.0,0.66365993]
[1673948367848,0.007,21171.0,21168.0,0.47293398]
[1673948368097,0.14808173,21171.0,21168.0,0.47293398]
[1673948368597,0.007,21171.0,21168.0,0.61432367]
[1673948368845,0.14108173,21172.0,21168.0,0.60732367]
[1673948369090,0.0004521,21171.0,21168.0,0.79804962]
[1673948369335,0.14108173,21172.0,21168.0,0.60732367]
[1673948369837,0.14708173,21172.0,21168.0,0.61432367]
[1673948370088,0.0004521,21171.0,21168.0,0.61432367]
[1673948370618,0.14108173,21171.0,21168.0,0.47293398]
[1673948371438,0.14153383,21171.0,21168.0,0.47293398]
[1673948371694,0.14853383,21171.0,21168.0,0.17293398]
[1673948371987,0.35932359,21171.0,21168.0,0.17293398]
[1673948372245,0.35932359,21171.0,21168.0,0.47293398]
[1673948372508,0.14853383,21171.0,21168.0,0.47293398]
[1673948372787,0.14853383,21171.0,21168.0,0.17293398]
[1673948373297,0.35887149,21171.0,21168.0,0.47293398]
[1673948374128,0.14808173,21171.0,21168.0,0.17293398]
[1673948374554,0.14108173,21170.0,21168.0,0.09723398]
[1673948375316,0.14808173,21171.0,21168.0,0.09723398]
[1673948375809,0.14108173,21170.0,21168.0,0.09723398]
[1673948376026,0.14108173,21170.0,21168.0,0.09023398]
[1673948376527,0.14108173,21170.0,21168.0,0.39723398]
[1673948376528,0.14808173,21170.0,21168.0,0.39723398]
[1673948376781,0.007,21170.0,21168.0,0.39723398]
[1673948377024,0.14853383,21170.0,21168.0,0.39723398]
[1673948377532,0.0074521,21170.0,21168.0,0.09723398]
[1673948378274,0.14853383,21170.0,21168.0,0.09723398]
[1673948380852,0.0074521,21170.0,21168.0,0.09723398]
[1673948381380,0.007,21170.0,21168.0,0.09723398]
[1673948381655,0.14808173,21170.0,21168.0,0.09723398]
[1673948381889,0.007,21170.0,21168.0,0.09723398]
[1673948382414,0.00657805,21170.0,21168.0,0.09723398]
[1673948383174,0.14765978,21170.0,21168.0,0.09723398]
[1673948383444,0.00703015,21170.0,21168.0,0.09723398]
[1673948383967,0.14811188,21170.0,21168.0,0.09723398]
[1673948384783,0.00703015,21170.0,21168.0,0.09723398]
[1673948385012,0.14811188,21170.0,21168.0,0.09723398]
[1673948385268,0.35890164,21170.0,21168.0,0.09723398]
[1673948386271,0.35844954,21170.0,21168.0,0.39723398]
[1673948386525,0.00657805,21170.0,21168.0,0.53862367]
[1673948388658,0.00657805,21170.0,21169.0,0.35288969]
[1673948388906,0.00657805,21170.0,21169.0,1.88283295]
[1673948389162,0.00657805,21170.0,21169.0,2.1830494]
[1673948389463,0.00657805,21170.0,21169.0,2.32422264]
[1673948389724,0.00657805,21170.0,21169.0,1.90018019]
[1673948390522,0.00657805,21170.0,21169.0,2.18295957]
[1673948390821,0.00657805,21170.0,21169.0,2.49310606]
[1673948391091,0.14652987,21175.0,21169.0,2.49310606]
[1673948391366,0.005,21170.0,21169.0,1.351776]
[1673948391622,0.00544814,21175.0,21169.0,2.43666126]
[1673948391879,0.00544814,21175.0,21170.0,1.6250421]
[1673948392175,0.00544814,21175.0,21174.0,0.1107]
[1673948392429,0.01044814,21175.0,21174.0,0.1107]
[1673948392959,0.01090024,21175.0,21174.0,0.1107]
[1673948393226,0.00544814,21175.0,21174.0,0.1107]
[1673948394300,0.01044814,21175.0,21174.0,0.1177]
[1673948394528,0.15152987,21175.0,21174.0,0.1177]
[1673948394995,0.01044814,21175.0,21174.0,0.1177]
[1673948395974,0.15152987,21175.0,21174.0,0.1177]
[1673948396218,0.01044814,21175.0,21174.0,0.1177]
[1673948399246,0.01044814,21175.0,21174.0,1.55297995]
[1673948399501,0.01044814,21175.0,21174.0,1.583654]
[1673948400290,0.01044814,21175.0,21174.0,1.283654]
[1673948400544,0.01044814,21175.0,21174.0,1.172954]
[1673948401128,0.01044814,21175.0,21174.0,1.472954]
[1673948403342,0.01044814,21175.0,21174.0,1.172954]
[1673948403605,0.01035622,21175.0,21174.0,1.172954]
[1673948404370,0.01035622,21175.0,21174.0,1.472954]
[1673948411616,0.01035622,21175.0,21174.0,1.80015607]
[1673948414251,0.01035622,21175.0,21174.0,1.91175607]
[1673948415924,0.01035622,21175.0,21174.0,1.90475607]
[1673948416191,0.01235622,21175.0,21174.0,1.91175607]
[1673948416447,0.00535622,21175.0,21174.0,1.90475607]
[1673948416705,0.01335622,21175.0,21174.0,1.80095607]
[1673948416957,0.01335622,21175.0,21174.0,1.27875607]
[1673948418705,0.01335622,21175.0,21174.0,1.57875607]
[1673948419466,0.01335622,21175.0,21174.0,1.65395607]
[1673948420479,0.01380832,21175.0,21174.0,0.554477]
[1673948420726,0.01380832,21175.0,21174.0,0.007]
[1673948421489,0.01335622,21175.0,21174.0,0.007]
[1673948422537,0.00535622,21175.0,21173.0,0.472277]
[1673948422749,0.08935622,21175.0,21174.0,0.001]
[1673948423511,0.00535622,21175.0,21173.0,0.472277]
[1673948424258,0.00580832,21175.0,21173.0,0.472277]
[1673948424487,0.08980832,21175.0,21174.0,0.001]
[1673948424739,0.15935753,21175.0,21174.0,0.001]
[1673948425006,0.48964453,21175.0,21174.0,0.001]
[1673948425503,0.321787,21174.0,21170.0,0.472363]
[1673948425771,0.321787,21174.0,21173.0,0.001]
[1673948426023,0.330287,21173.0,21170.0,0.472363]
[1673948426277,0.0004521,21172.0,21169.0,0.61379311]
[1673948426780,0.0004521,21172.0,21169.0,0.472388]
[1673948427036,0.00035954,21172.0,21169.0,0.472388]
[1673948427290,0.00035954,21172.0,21170.0,0.006]
[1673948427538,0.00035954,21172.0,21169.0,0.472388]
[1673948428565,0.00835954,21172.0,21169.0,0.478388]
[1673948429072,0.00035954,21172.0,21169.0,0.472388]
[1673948429354,0.008,21172.0,21169.0,0.477388]
[1673948432898,0.02870461,21171.0,21169.0,0.477388]
[1673948433701,0.02870461,21171.0,21169.0,0.472388]
[1673948434696,0.03670461,21171.0,21169.0,0.477388]
[1673948435194,0.03706415,21171.0,21169.0,0.477388]
[1673948436748,0.03706415,21171.0,21169.0,0.005]
[1673948436749,0.58403751,21171.0,21169.0,0.005]
[1673948437017,0.80916979,21170.0,21169.0,0.005]
[1673948437887,0.321787,21169.0,21166.0,2.6293]
[1673948438091,0.330287,21168.0,21165.0,0.48610832]
[1673948438372,0.57338279,21170.0,21169.0,0.001]
[1673948438895,2.19762554,21170.0,21169.0,0.001]
[1673948439165,2.19762554,21170.0,21165.0,0.01363832]
[1673948439166,1.26860375,21168.0,21165.0,0.01363832]
[1673948439414,0.79898869,21167.0,21165.0,0.01363832]
[1673948439667,0.79898869,21167.0,21165.0,0.01763832]
[1673948439668,0.321787,21166.0,21165.0,0.01763832]
[1673948440164,0.330287,21166.0,21165.0,0.01763832]
[1673948441022,0.330287,21166.0,21165.0,0.01363832]
[1673948441808,0.41764654,21166.0,21165.0,0.01363832]
[1673948443156,0.41722459,21166.0,21165.0,0.01363832]
[1673948444712,0.09585954,21166.0,21165.0,0.01363832]
[1673948444970,0.41765754,21166.0,21165.0,0.01363832]
[1673948445490,0.89485923,21166.0,21165.0,0.01363832]
[1673948445793,1.16450597,21166.0,21165.0,0.01363832]
[1673948446533,1.63696097,21166.0,21165.0,0.01363832]
[1673948448233,1.36731423,21166.0,21165.0,0.01363832]
[1673948448495,0.89011254,21166.0,21165.0,0.01363832]
[1673948448736,0.41765754,21166.0,21165.0,0.01363832]
[1673948450737,0.51765754,21166.0,21165.0,0.01363832]
[1673948450996,0.41765754,21166.0,21165.0,0.01363832]
[1673948451245,0.51765754,21166.0,21165.0,0.01363832]
[1673948451498,0.99011254,21166.0,21165.0,0.01363832]
[1673948452329,0.89011254,21166.0,21165.0,0.01363832]
[1673948453614,0.417298,21166.0,21165.0,0.01363832]
[1673948453884,0.0955,21166.0,21165.0,0.01363832]
[1673948455073,0.417298,21166.0,21165.0,0.01363832]
[1673948457122,0.41765754,21166.0,21165.0,0.01363832]
[1673948459907,0.09585954,21166.0,21165.0,0.01363832]
[1673948460412,0.41765754,21166.0,21165.0,0.01363832]
[1673948461696,0.41723559,21166.0,21165.0,0.01363832]
[1673948464279,0.41687605,21166.0,21165.0,0.01363832]
[1673948467946,0.41723559,21166.0,21165.0,0.01363832]
[1673948469563,0.09507805,21166.0,21165.0,0.01363832]
[1673948469833,0.09507805,21166.0,21165.0,0.28026427]
[1673948469834,0.087,21166.0,21165.0,0.28026427]
[1673948470144,0.087,21166.0,21165.0,0.08953832]
[1673948470407,0.087,21166.0,21165.0,0.86201632]
[1673948470670,0.087,21166.0,21165.0,0.48611632]
[1673948473470,0.087,21166.0,21165.0,0.78611632]
[1673948475326,0.087,21166.0,21165.0,0.48611632]
[1673948477386,0.087,21166.0,21165.0,0.78611632]
[1673948477932,0.087,21166.0,21165.0,0.78602833]
[1673948478410,0.087,21166.0,21165.0,0.01355033]
[1673948478657,0.55797234,21166.0,21165.0,0.01355033]
[1673948479168,0.7693423,21166.0,21165.0,0.01355033]
[1673948479416,1.7220807,21166.0,21165.0,0.01355033]
[1673948479673,2.64592189,21166.0,21165.0,0.01355033]
[1673948479918,2.29387064,21166.0,21165.0,0.01355033]
[1673948480166,1.93369271,21166.0,21165.0,0.01355033]
[1673948480421,1.7220807,21166.0,21165.0,0.01355033]
[1673948480678,2.64579988,21166.0,21165.0,0.01355033]
[1673948481186,1.7220807,21166.0,21165.0,0.01355033]
[1673948481433,2.64585904,21166.0,21165.0,0.01355033]
[1673948482498,2.64583597,21166.0,21165.0,0.01355033]
[1673948483218,1.7220807,21166.0,21165.0,0.01355033]
[1673948483224,2.36443215,21166.0,21165.0,0.01355033]
[1673948483495,3.50751208,21166.0,21165.0,0.01355033]
[1673948483999,3.86005121,21166.0,21165.0,0.01355033]
[1673948484546,0.38981812,21165.0,21164.0,0.00046111]
[1673948484824,3.69255691,21165.0,21164.0,0.00046111]
[1673948485089,4.16503491,21165.0,21164.0,0.00046111]
[1673948485350,3.50171046,21165.0,21164.0,0.00046111]
[1673948485617,3.50170693,21165.0,21164.0,0.00046111]
[1673948485896,3.2198059,21165.0,21164.0,0.00046111]
[1673948486395,3.11260407,21165.0,21164.0,0.00146111]
[1673948486645,2.18848009,21165.0,21164.0,0.00146111]
[1673948487458,2.75784573,21165.0,21164.0,0.00146111]
[1673948487691,2.39984228,21165.0,21164.0,0.00146111]
[1673948487914,2.032958,21165.0,21164.0,0.00046111]
[1673948488168,2.032958,21165.0,21164.0,0.00146111]
[1673948488428,0.95010726,21165.0,21164.0,0.00146111]
[1673948488687,0.48741812,21165.0,21164.0,0.00146111]
[1673948489720,0.80921612,21165.0,21164.0,0.00146111]
[1673948489969,0.48741812,21165.0,21164.0,0.00146111]
[1673948490481,0.47891812,21165.0,21164.0,0.00146111]
[1673948491236,0.95010726,21165.0,21164.0,0.00146111]
[1673948492077,0.62830926,21165.0,21164.0,0.00146111]
[1673948492557,0.48741812,21165.0,21164.0,0.00146111]
[1673948493007,0.62830926,21165.0,21164.0,0.00146111]
[1673948493268,0.95010726,21165.0,21164.0,0.00146111]
[1673948493990,0.80921612,21165.0,21164.0,0.00146111]
[1673948494564,1.85084059,21165.0,21164.0,0.00146111]
[1673948495075,1.56895631,21165.0,21164.0,0.00146111]
[1673948495583,1.6394784,21165.0,21164.0,0.00146111]
[1673948497228,1.85079262,21165.0,21164.0,0.00146111]
[1673948497479,2.20902581,21165.0,21164.0,0.00146111]
[1673948497732,1.94291136,21165.0,21164.0,0.00146111]
[1673948497982,2.15426112,21165.0,21164.0,0.00146111]
[1673948498237,1.94291136,21165.0,21164.0,0.00146111]
[1673948498781,2.42011305,21165.0,21164.0,0.00146111]
[1673948499062,2.34959632,21165.0,21164.0,0.00146111]
[1673948499308,2.6314806,21165.0,21164.0,0.00146111]
[1673948499554,2.18707139,21165.0,21162.0,0.01363832]
[1673948499809,0.321798,21164.0,21162.0,0.01363832]
[1673948500074,0.0085,21164.0,21162.0,0.01363832]
[1673948500344,0.14940803,21164.0,21162.0,0.01363832]
[1673948501849,0.321798,21163.0,21162.0,0.01363832]
[1673948502116,0.45236118,21163.0,21162.0,0.01363832]
[1673948502379,0.77415918,21163.0,21162.0,0.01363832]
[1673948503472,1.38794875,21163.0,21162.0,0.01363832]
[1673948503700,2.29269424,21163.0,21162.0,0.01363832]
[1673948503962,2.87535179,21163.0,21162.0,0.01363832]
[1673948504240,2.87531847,21163.0,21162.0,0.01363832]
[1673948504793,2.77731847,21163.0,21162.0,0.01363832]
[1673948505325,2.65698424,21163.0,21162.0,0.01363832]
[1673948505577,3.14401736,21163.0,21162.0,0.01363832]
[1673948505839,2.86821219,21163.0,21162.0,0.01363832]
[1673948506114,2.65698424,21163.0,21162.0,0.01363832]
[1673948506360,4.53285147,21163.0,21162.0,3.832e-05]
[1673948506614,4.53285147,21163.0,21160.0,0.01328885]
[1673948506615,0.01397336,21161.0,21160.0,0.01328885]
[1673948506895,0.34427136,21161.0,21160.0,0.01328885]
[1673948507131,0.02247336,21161.0,21160.0,0.01328885]
[1673948508789,0.10497336,21161.0,21160.0,0.08878885]
[1673948508959,0.10497336,21161.0,21160.0,0.56137785]
[1673948509224,0.14495096,21165.0,21160.0,1.50822029]
[1673948509486,0.3521262,21167.0,21161.0,0.59072595]
[1673948509747,0.46262895,21166.0,21164.0,0.0753]
[1673948510023,1.0806816,21166.0,21160.0,0.86609434]
[1673948510268,0.1,21165.0,21160.0,0.86609434]
[1673948510546,0.24085096,21165.0,21160.0,0.86609434]
[1673948511060,0.24085096,21165.0,21160.0,0.01328885]
[1673948511061,0.94451421,21164.0,21160.0,0.01328885]
[1673948511311,0.47720169,21163.0,21160.0,0.01328885]
[1673948511572,0.0085,21162.0,21160.0,0.02128885]
[1673948512119,0.00035954,21161.0,21160.0,0.02128885]
[1673948512376,0.0085,21162.0,21160.0,0.02028885]
[1673948513167,0.00035954,21161.0,21160.0,0.02028885]
[1673948513434,0.0085,21162.0,21160.0,0.02028885]
[1673948513660,0.0085,21162.0,21160.0,0.01328885]
[1673948513910,0.0085,21162.0,21160.0,0.02028885]
[1673948514159,0.06198954,21161.0,21160.0,0.02028885]
[1673948514420,0.0085,21161.0,21160.0,0.02028885]
[1673948514675,0.0085,21161.0,21160.0,0.02728885]
[1673948514946,0.0085,21161.0,21160.0,0.01328885]
[1673948515294,0.48606123,21161.0,21160.0,0.01328885]
[1673948515751,0.70957057,21161.0,21160.0,0.01328885]
[1673948516023,1.03136857,21161.0,21160.0,0.01328885]
[1673948516263,0.62691219,21161.0,21160.0,0.01328885]
[1673948516549,0.48606123,21161.0,21160.0,0.01328885]
[1673948517045,0.48606123,21161.0,21160.0,0.02028885]
[1673948517327,0.62691219,21161.0,21160.0,0.02028885]
[1673948517848,0.48606123,21161.0,21160.0,0.02028885]
[1673948518352,0.48570169,21161.0,21160.0,0.02028885]
[1673948521686,0.62655265,21161.0,21160.0,0.02028885]
[1673948521889,0.48606123,21161.0,21160.0,0.02028885]
[1673948522447,0.48570169,21161.0,21160.0,0.01558226]
[1673948522989,0.48606123,21161.0,21160.0,0.01558226]
[1673948523240,0.48570169,21161.0,21160.0,0.01558226]
[1673948524586,0.0085,21161.0,21160.0,0.01558226]
[1673948525346,0.00885954,21161.0,21160.0,0.01558226]
[1673948525611,0.0085,21161.0,21160.0,0.01558226]
[1673948526125,0.14935096,21161.0,21160.0,0.01558226]
[1673948526389,0.1497105,21161.0,21160.0,0.01558226]
[1673948526626,0.00885954,21161.0,21160.0,0.01558226]
[1673948526880,0.1497105,21161.0,21160.0,0.01558226]
[1673948527381,0.14935096,21161.0,21160.0,0.01558226]
[1673948528411,0.00885954,21161.0,21160.0,0.01558226]
[1673948528938,0.0085,21161.0,21160.0,0.01558226]
[1673948529498,0.14935096,21161.0,21160.0,0.01558226]
[1673948529784,0.0085,21161.0,21160.0,0.01558226]
[1673948530554,0.14935096,21161.0,21160.0,0.01558226]
[1673948530842,0.14935096,21161.0,21158.0,0.16352422]
[1673948531092,0.0085,21160.0,21158.0,0.16352422]
[1673948531851,0.0085,21160.0,21158.0,0.46352422]
[1673948532126,0.0085,21160.0,21158.0,0.16352422]
[1673948532389,0.0085,21160.0,21158.0,0.46352422]
[1673948532665,0.00885954,21160.0,21158.0,0.16352422]
[1673948532974,0.88926504,21160.0,21157.0,0.01292677]
[1673948533230,0.97490125,21160.0,21158.0,0.006]
[1673948533495,0.76362601,21160.0,21158.0,0.006]
[1673948533793,0.6779898,21160.0,21157.0,0.01292677]
[1673948534054,0.54413884,21160.0,21157.0,0.01592677]
[1673948534338,0.53713884,21160.0,21157.0,0.01292677]
[1673948534601,0.54413884,21160.0,21158.0,0.006]
[1673948535085,1.08886065,21160.0,21157.0,0.01292677]
[1673948535354,1.09586065,21160.0,21157.0,0.01592677]
[1673948536397,1.09586065,21160.0,21158.0,0.006]
[1673948536398,0.88458541,21160.0,21158.0,0.006]
[1673948536674,0.87758541,21160.0,21157.0,0.01292677]
[1673948536922,0.88458541,21160.0,21157.0,0.01592677]
[1673948537182,0.5437793,21160.0,21157.0,0.23293188]
[1673948537457,0.5437793,21160.0,21159.0,0.0759]
[1673948539342,0.5367793,21160.0,21159.0,0.0759]
[1673948539626,0.5437793,21160.0,21159.0,0.006]
[1673948542629,0.0155,21160.0,21159.0,0.0813]
[1673948542889,0.0155,21160.0,21159.0,0.79531711]
[1673948542890,0.007,21160.0,21159.0,0.79531711]
[1673948543167,0.007,21160.0,21159.0,1.029812]
[1673948543691,0.007,21160.0,21159.0,1.40154102]
[1673948543948,0.007,21160.0,21159.0,1.28332478]
[1673948544469,0.007,21160.0,21159.0,0.929812]
[1673948545711,0.007,21160.0,21159.0,1.40152049]
[1673948546225,0.007,21160.0,21159.0,1.28332478]
[1673948546484,0.007,21160.0,21159.0,1.07121711]
[1673948547020,0.007,21160.0,21159.0,1.28332478]
[1673948547279,0.007,21160.0,21159.0,1.40165861]
[1673948547537,0.007,21160.0,21159.0,1.69125861]
[1673948548452,0.007,21160.0,21159.0,1.97425278]
[1673948548710,0.007,21160.0,21159.0,1.69125861]
[1673948549240,0.14085096,21165.0,21159.0,1.96825191]
[1673948549525,0.0085,21165.0,21162.0,0.0758]
[1673948549801,0.0085,21165.0,21164.0,0.0759]
[1673948551115,0.0145,21165.0,21164.0,0.0829]
[1673948552457,0.0145,21165.0,21164.0,0.08282896]
[1673948553827,0.01485954,21165.0,21164.0,0.007]
[1673948554341,0.1557105,21165.0,21164.0,0.007]
[1673948554611,0.36698574,21165.0,21164.0,0.007]
[1673948554909,0.15451051,21165.0,21161.0,0.89976766]
[1673948555173,0.51259155,21165.0,21164.0,0.007]
[1673948555426,0.23093479,21165.0,21164.0,0.007]
[1673948555646,0.37185856,21165.0,21164.0,0.007]
[1673948555903,0.23093479,21165.0,21164.0,0.007]
[1673948556187,0.22493479,21165.0,21161.0,1.37233266]
[1673948556463,0.14092773,21164.0,21161.0,0.90677866]
[1673948556732,0.15458728,21165.0,21161.0,0.89977866]
[1673948556992,0.14090702,21164.0,21161.0,0.89977866]
[1673948557509,0.36548227,21165.0,21161.0,0.89977866]
[1673948558012,0.37148227,21165.0,21161.0,0.90677866]
[1673948558497,0.01930001,21165.0,21161.0,0.90677866]
[1673948558760,0.16020703,21165.0,21161.0,0.90677866]
[1673948559005,0.15420703,21165.0,21161.0,0.90677866]
[1673948559289,0.006,21164.0,21161.0,0.89977866]
[1673948559538,0.006,21164.0,21161.0,0.90677866]
[1673948560027,0.14690702,21164.0,21161.0,0.90677866]
[1673948560304,0.14090702,21164.0,21161.0,0.89977866]
[1673948560535,0.15420703,21165.0,21161.0,0.89977866]
[1673948560788,0.006,21164.0,21161.0,1.09750461]
[1673948561008,0.00635954,21164.0,21161.0,0.90677866]
[1673948561264,0.006,21164.0,21161.0,0.90677866]
[1673948562067,0.16020703,21165.0,21161.0,0.90677866]
[1673948562328,0.00035954,21164.0,21161.0,0.89977866]
[1673948562556,0.00635954,21164.0,21161.0,0.90677866]
[1673948562809,0.0085,21163.0,21161.0,0.89977866]
[1673948563061,0.0085,21163.0,21161.0,0.43421366]
[1673948563290,0.0085,21163.0,21161.0,0.42721366]
[1673948563548,0.15576656,21164.0,21161.0,0.007]
[1673948563794,0.15576656,21164.0,21159.0,0.848501]
[1673948563795,0.356979,21164.0,21159.0,0.848501]
[1673948564044,0.006,21163.0,21161.0,0.007]
[1673948564285,0.0085,21162.0,21161.0,0.007]
[1673948564571,0.07013,21162.0,21161.0,0.007]
[1673948564827,0.84409777,21162.0,21161.0,0.007]
[1673948565101,0.98500479,21162.0,21158.0,0.97545726]
[1673948565378,0.87448203,21162.0,21161.0,0.007]
[1673948565615,1.41992564,21162.0,21157.0,2.64222677]
[1673948565880,0.46274261,21161.0,21157.0,0.01292677]
[1673948566135,0.00885954,21160.0,21157.0,0.01292677]
[1673948566434,0.00885954,21160.0,21158.0,0.087]
[1673948566687,0.00885954,21160.0,21157.0,0.01292677]
[1673948566939,0.00885954,21160.0,21157.0,0.09992677]
[1673948567437,0.00885954,21160.0,21157.0,0.39992677]
[1673948567738,0.00035954,21160.0,21157.0,0.39992677]
[1673948568200,0.00035954,21160.0,21157.0,0.31292677]
[1673948568447,0.00035954,21160.0,21157.0,0.39892677]
[1673948568715,0.00035954,21160.0,21157.0,0.09892677]
[1673948569998,0.00035954,21160.0,21157.0,0.57157877]
[1673948570264,0.0085,21161.0,21158.0,0.3]
[1673948570519,0.0085,21161.0,21158.0,0.49072595]
[1673948570761,0.0085,21161.0,21158.0,0.3]
[1673948571237,0.0085,21161.0,21157.0,0.48557877]
[1673948571496,0.0085,21161.0,21158.0,0.087]
[1673948571760,0.0085,21161.0,21158.0,0.27772595]
[1673948572052,0.0085,21161.0,21158.0,0.087]
[1673948572304,0.0085,21161.0,21158.0,0.0759]
[1673948573079,0.0085,21161.0,21158.0,0.1629]
[1673948573864,0.00035954,21160.0,21158.0,0.16280457]
[1673948574834,0.00035954,21160.0,21158.0,0.07580457]
[1673948575100,0.00035954,21160.0,21158.0,0.16180457]
[1673948575849,0.59311438,21162.0,21158.0,0.35253052]
[1673948576119,0.14094461,21163.0,21161.0,0.0753]
[1673948576378,0.00035954,21163.0,21162.0,0.0759]
[1673948576627,0.0085,21164.0,21162.0,0.0759]
[1673948577403,0.00885954,21164.0,21162.0,0.0759]
[1673948577934,0.01485954,21164.0,21162.0,0.0829]
[1673948578987,0.55466906,21164.0,21162.0,0.007]
[1673948579230,0.321798,21163.0,21162.0,0.007]
[1673948579494,0.47124261,21163.0,21162.0,0.007]
[1673948580531,0.68251785,21163.0,21159.0,0.0759]
[1673948580826,1.81995114,21163.0,21162.0,0.007]
[1673948581073,2.49421739,21163.0,21162.0,0.007]
[1673948581341,0.43502022,21162.0,21157.0,2.34062967]
[1673948581588,0.43502022,21162.0,21156.0,0.5649904]
[1673948581589,0.330298,21161.0,21156.0,0.5649904]
[1673948581874,0.0085,21161.0,21159.0,0.015]
[1673948582091,0.0085,21161.0,21156.0,0.5649904]
[1673948582092,0.0085,21161.0,21156.0,0.70649002]
[1673948582341,0.0085,21161.0,21156.0,0.5649904]
[1673948582839,0.0085,21161.0,21157.0,0.3]
[1673948583337,0.0085,21161.0,21157.0,0.49072595]
[1673948583581,0.00035954,21160.0,21157.0,0.49072595]
[1673948583838,0.0085,21161.0,21157.0,0.848556]
[1673948584093,0.0085,21161.0,21157.0,1.11928195]
[1673948584094,0.0095,21161.0,21157.0,1.11928195]
[1673948584348,0.00035954,21160.0,21157.0,0.548556]
[1673948584593,0.00135954,21160.0,21157.0,0.628556]
[1673948584839,0.00035954,21160.0,21158.0,0.3]
[1673948585089,0.0085,21161.0,21158.0,0.3]
[1673948585090,0.0095,21161.0,21158.0,0.3]
[1673948585598,0.0095,21161.0,21160.0,0.0759]
[1673948585854,0.0095,21161.0,21160.0,0.3759]
[1673948585855,0.001,21161.0,21160.0,0.3759]
[1673948587099,0.43502022,21162.0,21160.0,0.3759]
[1673948587352,0.001,21161.0,21159.0,0.54791]
[1673948587606,0.001,21161.0,21160.0,0.848484]
[1673948587880,0.002,21161.0,21160.0,0.929484]
[1673948588136,0.14095709,21164.0,21160.0,0.863484]
[1673948588400,0.00035954,21163.0,21161.0,0.0755]
[1673948588645,0.00035954,21163.0,21161.0,0.3755]
[1673948588899,0.00035954,21163.0,21161.0,0.0755]
[1673948589448,0.14131663,21163.0,21161.0,0.0755]
[1673948589724,0.00035954,21163.0,21161.0,0.0755]
[1673948590485,0.01235954,21163.0,21161.0,0.0815]
[1673948592110,0.26514263,21163.0,21161.0,0.0815]
[1673948592277,0.15331663,21163.0,21161.0,0.0815]
[1673948592771,0.012,21163.0,21161.0,0.0815]
[1673948593283,0.012,21163.0,21161.0,0.3815]
[1673948594293,0.012,21163.0,21161.0,0.554055]
[1673948596333,0.01235954,21163.0,21161.0,0.554055]
[1673948597131,0.012,21163.0,21161.0,0.554055]
[1673948597601,0.012,21163.0,21162.0,0.0758]
[1673948597889,0.012,21163.0,21162.0,0.848345]
[1673948598658,0.012,21163.0,21162.0,0.52087907]
[1673948598926,0.012,21163.0,21162.0,1.20151519]
[1673948599205,0.00480001,21165.0,21163.0,0.1]
[1673948599457,0.00480001,21165.0,21164.0,0.1518]
[1673948599806,0.00480001,21165.0,21164.0,1.0968]
[1673948600447,0.01580001,21165.0,21164.0,1.3968]
[1673948600706,0.00480001,21165.0,21164.0,1.3968]
[1673948600952,0.00580001,21165.0,21164.0,1.4788]
[1673948601228,0.00480001,21165.0,21164.0,1.87967473]
[1673948601471,0.00480001,21165.0,21164.0,2.21997441]
[1673948601733,0.00480001,21165.0,21164.0,2.36147403]
[1673948602298,0.00480001,21165.0,21164.0,2.21997441]
[1673948602572,0.00480001,21165.0,21164.0,1.87967473]
[1673948602841,0.00580001,21165.0,21164.0,1.96167473]
[1673948603097,0.00580001,21165.0,21164.0,2.30197441]
[1673948603358,0.00580001,21165.0,21164.0,1.96167473]
[1673948606409,0.00580001,21165.0,21164.0,1.83429285]
[1673948617253,0.00580001,21165.0,21164.0,1.53429285]
[1673948617761,0.00580001,21165.0,21164.0,1.83429285]
[1673948621904,0.00573458,21165.0,21164.0,1.83429285]
[1673948623161,0.00573458,21165.0,21164.0,1.97579247]
[1673948623416,0.00573458,21165.0,21164.0,2.1880419]
[1673948623939,0.00573458,21165.0,21164.0,2.64813432]
[1673948624188,0.00573458,21165.0,21164.0,2.31066331]
[1673948624454,0.00573458,21165.0,21164.0,2.5066347]
[1673948624714,0.00573458,21165.0,21164.0,2.38656376]
[1673948624984,0.00573458,21165.0,21164.0,1.91019285]
[1673948625755,0.00573458,21165.0,21164.0,1.83429285]
[1673948627564,0.00573458,21165.0,21164.0,1.53429285]
[1673948628608,0.00573458,21165.0,21164.0,1.83429285]
[1673948629635,0.00573458,21165.0,21164.0,1.75839285]
[1673948629894,0.00573458,21165.0,21164.0,1.45839285]
[1673948630634,0.00573458,21165.0,21164.0,1.75839285]
[1673948631389,0.00573458,21165.0,21164.0,1.45839285]
[1673948631956,0.00573458,21165.0,21164.0,1.75839285]
[1673948632202,0.00573458,21165.0,21164.0,1.45839285]
[1673948632203,0.00609412,21165.0,21164.0,1.45839285]
[1673948632465,0.00573458,21165.0,21164.0,1.45839285]
[1673948632968,0.00573458,21165.0,21164.0,1.75839285]
[1673948634775,0.00573458,21165.0,21164.0,1.45839285]
[1673948636268,0.00573458,21165.0,21164.0,1.75839285]
[1673948636998,0.00573458,21165.0,21164.0,1.75852986]
[1673948637249,0.00573458,21165.0,21164.0,1.89980986]
[1673948637463,0.00573458,21165.0,21164.0,1.75852986]
[1673948638526,0.00573458,21165.0,21164.0,1.89980986]
[1673948639074,0.00573458,21165.0,21164.0,1.75852986]
[1673948639585,0.00573458,21165.0,21164.0,1.83442986]
[1673948642095,0.00573458,21165.0,21164.0,2.18795929]
[1673948642323,0.00573458,21165.0,21164.0,1.97570986]
[1673948642829,0.00573458,21165.0,21164.0,2.30668513]
[1673948643084,0.00573458,21165.0,21164.0,2.29766564]
[1673948643583,0.00573458,21165.0,21164.0,1.83442986]
[1673948645887,0.00573458,21165.0,21164.0,1.97570986]
[1673948646371,0.00573458,21165.0,21164.0,1.83442986]
[1673948647671,0.00573458,21165.0,21164.0,1.97570986]
[1673948647924,0.00573458,21165.0,21164.0,1.83442986]
[1673948648475,0.00573458,21165.0,21164.0,1.97570986]
[1673948649504,0.00573458,21165.0,21164.0,2.32368691]
[1673948649505,0.00566418,21165.0,21164.0,2.32368691]
[1673948649764,0.00566418,21165.0,21164.0,2.18240691]
[1673948650026,0.00566418,21165.0,21164.0,2.32395505]
[1673948650547,0.00566418,21165.0,21164.0,1.83442986]
[1673948650845,0.00566418,21165.0,21164.0,1.98162986]
[1673948651097,0.00566418,21165.0,21164.0,2.123178]
[1673948651359,0.00566418,21165.0,21164.0,1.98162986]